[Event "Rapid del Mercoledì"]
[Site "Chess.com"]
[Date "2020.05.06"]
[Round "2"]
[White "sergiodone"]
[Black "GB86_CHESS"]
[Result "0-1"]
[WhiteElo "1537"]
[BlackElo "1821"]
[TimeControl "720+3"]
[EndTime "12:43:53 PDT"]
[Termination "GB86_CHESS ha vinto per abbandono"]

1. e4 {[%clk 0:12:02.9]} 1... c5 {[%clk 0:12:00.7]} 2. Nf3 {[%clk 0:12:03.6]}
2... d6 {[%clk 0:12:01.4]} 3. d4 {[%clk 0:12:05.2]} 3... cxd4 {[%clk 0:12:02.4]}
4. Nxd4 {[%clk 0:12:05.5]} 4... Nf6 {[%clk 0:12:02.6]} 5. Nc3 {[%clk 0:12:06.5]}
5... a6 {[%clk 0:12:04.3]} 6. a3 {[%clk 0:12:06.8]} 6... e5 {[%clk 0:11:42]} 7.
Nf3 {[%clk 0:11:49.1]} 7... Nc6 {[%clk 0:11:40.1]} 8. h3 {[%clk 0:11:49.2]} 8...
Be7 {[%clk 0:11:37.9]} 9. Bc4 {[%clk 0:11:46.9]} 9... O-O {[%clk 0:11:38]} 10.
O-O {[%clk 0:11:47.3]} 10... b5 {[%clk 0:11:38.7]} 11. Bb3 {[%clk 0:11:28]}
11... Bb7 {[%clk 0:11:37.5]} 12. Bg5 {[%clk 0:11:25.4]} 12... Qc7 {[%clk
0:11:32.4]} 13. Bxf6 {[%clk 0:11:26.9]} 13... Bxf6 {[%clk 0:11:24.6]} 14. Nd5
{[%clk 0:11:28.7]} 14... Qd8 {[%clk 0:11:26.4]} 15. c3 {[%clk 0:11:25.4]} 15...
Na5 {[%clk 0:11:23.8]} 16. Nxf6+ {[%clk 0:11:23.8]} 16... Qxf6 {[%clk
0:11:21.5]} 17. Bd5 {[%clk 0:11:24.4]} 17... Rad8 {[%clk 0:11:09.9]} 18. b4
{[%clk 0:11:25.1]} 18... Bxd5 {[%clk 0:11:10.4]} 19. Qxd5 {[%clk 0:11:15]} 19...
Nc4 {[%clk 0:11:10.3]} 20. a4 {[%clk 0:11:05.2]} 20... Qe6 {[%clk 0:11:09.8]}
21. axb5 {[%clk 0:11:00]} 21... Qxd5 {[%clk 0:11:06.9]} 22. exd5 {[%clk
0:11:01.8]} 22... axb5 {[%clk 0:11:08.8]} 23. Ra6 {[%clk 0:10:52.8]} 23... f5
{[%clk 0:11:07.6]} 24. Ng5 {[%clk 0:10:47.3]} 24... Rf6 {[%clk 0:10:52.7]} 25.
Ne6 {[%clk 0:10:48.3]} 25... Rd7 {[%clk 0:10:50.7]} 26. Ra8+ {[%clk 0:10:39.8]}
26... Kf7 {[%clk 0:10:49.7]} 27. g4 {[%clk 0:10:17.9]} 27... fxg4 {[%clk
0:10:35.8]} 28. hxg4 {[%clk 0:10:19.1]} 28... Nd2 {[%clk 0:10:30.6]} 29. Rd1
{[%clk 0:09:19.1]} 29... Ne4 {[%clk 0:10:24.6]} 30. Rf8+ {[%clk 0:09:09.9]}
30... Kg6 {[%clk 0:10:22.6]} 31. Rxf6+ {[%clk 0:09:11.6]} 31... Kxf6 {[%clk
0:10:08.6]} 32. Rd3 {[%clk 0:08:43.7]} 32... Ng5 {[%clk 0:09:58.5]} 33. f4
{[%clk 0:06:56.3]} 33... Nxe6 {[%clk 0:09:53.3]} 34. fxe5+ {[%clk 0:06:58]}
34... Kxe5 {[%clk 0:09:46.4]} 35. dxe6 {[%clk 0:06:59.3]} 35... Kxe6 {[%clk
0:09:47.8]} 36. Rd4 {[%clk 0:06:46.8]} 36... Ke5 {[%clk 0:09:44.3]} 37. Kg2
{[%clk 0:06:44.2]} 37... Rc7 {[%clk 0:09:40.7]} 38. Rd3 {[%clk 0:06:37.9]} 38...
d5 {[%clk 0:09:41]} 39. Kg3 {[%clk 0:06:33.5]} 39... Ke4 {[%clk 0:09:39.5]} 40.
Rd4+ {[%clk 0:06:29.1]} 40... Ke5 {[%clk 0:09:39.1]} 41. Rd3 {[%clk 0:06:29.3]}
41... Rc4 {[%clk 0:09:37.5]} 42. g5 {[%clk 0:06:10.8]} 42... h5 {[%clk
0:09:05.6]} 43. gxh6 {[%clk 0:06:00.1]} 43... gxh6 {[%clk 0:09:07.1]} 44. Rf3
{[%clk 0:05:53.5]} 44... h5 {[%clk 0:08:56.3]} 45. Re3+ {[%clk 0:05:45.8]} 45...
Re4 {[%clk 0:08:56]} 46. Rf3 {[%clk 0:05:46.5]} 46... d4 {[%clk 0:08:49.6]} 47.
cxd4+ {[%clk 0:05:42.5]} 47... Kxd4 {[%clk 0:08:51.5]} 48. Rf5 {[%clk
0:05:39.8]} 48... h4+ {[%clk 0:08:48]} 49. Kh3 {[%clk 0:05:39.4]} 49... Kc4
{[%clk 0:08:49.5]} 50. Kg2 {[%clk 0:04:05.7]} 50... Kxb4 {[%clk 0:08:48.2]} 51.
Kf3 {[%clk 0:04:06.7]} 51... Rc4 {[%clk 0:08:47.7]} 52. Ke3 {[%clk 0:04:05.4]}
52... Ka4 {[%clk 0:08:22.2]} 53. Kd3 {[%clk 0:04:06.6]} 53... Rg4 {[%clk
0:08:16.9]} 54. Rh5 {[%clk 0:04:05.2]} 54... b4 {[%clk 0:08:04.2]} 55. Kc2
{[%clk 0:04:05.5]} 55... b3+ {[%clk 0:07:56.1]} 56. Kb2 {[%clk 0:04:04.9]} 56...
Rg2+ {[%clk 0:07:57.6]} 57. Kb1 {[%clk 0:04:00.5]} 57... Rh2 {[%clk 0:07:59]}
58. Rh8 {[%clk 0:03:53]} 58... b2 {[%clk 0:07:56.2]} 59. Rb8 {[%clk 0:03:23.2]}
59... h3 {[%clk 0:07:51.8]} 60. Ra8+ {[%clk 0:03:17.6]} 60... Kb3 {[%clk
0:07:52.2]} 61. Ra3+ {[%clk 0:03:18.8]} 61... Kc4 {[%clk 0:07:52.4]} 62. Rc3+
{[%clk 0:03:20.2]} 62... Kxc3 {[%clk 0:07:53]} 0-1

[Event "Rapid del Mercoledì"]
[Site "Chess.com"]
[Date "2020.05.06"]
[Round "2"]
[White "fausto2p"]
[Black "sirmale49"]
[Result "1-0"]
[WhiteElo "1034"]
[BlackElo "1379"]
[TimeControl "720+3"]
[EndTime "12:48:31 PDT"]
[Termination "fausto2p ha vinto per abbandono"]

1. d4 {[%clk 0:12:02.9]} 1... Nf6 {[%clk 0:12:01.2]} 2. c4 {[%clk 0:12:03.4]}
2... g6 {[%clk 0:12:03.3]} 3. Nc3 {[%clk 0:12:04.5]} 3... Bg7 {[%clk 0:12:05.1]}
4. e4 {[%clk 0:12:06.1]} 4... d6 {[%clk 0:12:06.7]} 5. f3 {[%clk 0:12:06.6]}
5... O-O {[%clk 0:12:08.1]} 6. Be3 {[%clk 0:12:04.5]} 6... e5 {[%clk 0:12:09.4]}
7. d5 {[%clk 0:12:05.4]} 7... c6 {[%clk 0:12:08.7]} 8. g4 {[%clk 0:11:58.1]}
8... Ne8 {[%clk 0:12:06.5]} 9. h4 {[%clk 0:11:49]} 9... Nd7 {[%clk 0:11:58.5]}
10. Qd2 {[%clk 0:11:27.8]} 10... Ndf6 {[%clk 0:11:53]} 11. Nge2 {[%clk
0:11:15.9]} 11... h5 {[%clk 0:11:33.9]} 12. gxh5 {[%clk 0:10:20.1]} 12... Nxh5
{[%clk 0:11:33.6]} 13. O-O-O {[%clk 0:10:10.3]} 13... f5 {[%clk 0:11:32.1]} 14.
Bg5 {[%clk 0:09:54.1]} 14... Bf6 {[%clk 0:11:24.8]} 15. Bxf6 {[%clk 0:09:47.6]}
15... Qxf6 {[%clk 0:11:21.7]} 16. exf5 {[%clk 0:08:18.2]} 16... Bxf5 {[%clk
0:11:04.5]} 17. Ne4 {[%clk 0:06:53.9]} 17... Bxe4 {[%clk 0:11:00.9]} 18. fxe4
{[%clk 0:06:53.9]} 18... b5 {[%clk 0:11:01.3]} 19. cxb5 {[%clk 0:06:14.1]} 19...
cxb5 {[%clk 0:10:59.7]} 20. Bh3 {[%clk 0:05:54.7]} 20... Nf4 {[%clk 0:10:54.7]}
21. Nxf4 {[%clk 0:05:52]} 21... Rb8 {[%clk 0:10:25]} 22. Be6+ {[%clk 0:05:21.4]}
22... Kg7 {[%clk 0:10:13.9]} 23. Nh5+ {[%clk 0:04:53.5]} 23... gxh5 {[%clk
0:10:08.5]} 24. Rdg1+ {[%clk 0:04:37]} 24... Kh8 {[%clk 0:10:03]} 25. Bf5 {[%clk
0:04:34.9]} 25... Ng7 {[%clk 0:09:54.5]} 26. Rg6 {[%clk 0:04:30.3]} 26... Qe7
{[%clk 0:08:59.5]} 27. Qh6+ {[%clk 0:04:31.1]} 27... Kg8 {[%clk 0:08:54.7]} 28.
Be6+ {[%clk 0:04:30.4]} 28... Rf7 {[%clk 0:08:55.1]} 29. Bxf7+ {[%clk
0:04:12.3]} 29... Qxf7 {[%clk 0:08:54.9]} 30. Rhg1 {[%clk 0:04:11.5]} 30... Qf4+
{[%clk 0:08:27.6]} 31. Qxf4 {[%clk 0:04:10]} 31... exf4 {[%clk 0:08:29.4]} 32.
Rxg7+ {[%clk 0:04:09.6]} 32... Kh8 {[%clk 0:08:27.7]} 33. Rf7 {[%clk 0:04:07.7]}
33... Rc8+ {[%clk 0:08:23.9]} 34. Kb1 {[%clk 0:04:06.1]} 34... Rc4 {[%clk
0:08:10.7]} 35. Rxf4 {[%clk 0:04:02.5]} 35... Rd4 {[%clk 0:08:10.9]} 36. Rg6
{[%clk 0:03:44.8]} 36... Rd1+ {[%clk 0:07:58.5]} 37. Kc2 {[%clk 0:03:45.3]}
37... Rh1 {[%clk 0:07:57.8]} 38. Rh6+ {[%clk 0:03:44.4]} 38... Kg7 {[%clk
0:07:58]} 39. Rxh5 {[%clk 0:03:45.4]} 39... Rh2+ {[%clk 0:07:58.7]} 40. Kb3
{[%clk 0:03:42.4]} 40... a5 {[%clk 0:07:50.6]} 41. Rhf5 {[%clk 0:02:58.5]} 41...
Rh3+ {[%clk 0:07:50]} 42. Rf3 {[%clk 0:02:58.3]} 42... Rxh4 {[%clk 0:07:51.6]}
43. Rf7+ {[%clk 0:02:56.3]} 43... Kg8 {[%clk 0:07:41.4]} 44. Re7 {[%clk
0:02:36.6]} 44... Rg4 {[%clk 0:07:28.9]} 45. Re6 {[%clk 0:02:37.4]} 45... Rh4
{[%clk 0:07:27.2]} 46. Kc3 {[%clk 0:02:34.8]} 46... Rh1 {[%clk 0:07:17.7]} 47.
a3 {[%clk 0:02:25.8]} 47... Rc1+ {[%clk 0:07:18.7]} 48. Kd2 {[%clk 0:02:24.9]}
48... Rc4 {[%clk 0:07:12.6]} 49. Rc3 {[%clk 0:02:13.9]} 49... Rd4+ {[%clk
0:06:48.5]} 50. Rd3 {[%clk 0:02:11.3]} 50... Rc4 {[%clk 0:06:46]} 51. b3 {[%clk
0:01:50.7]} 51... Rc7 {[%clk 0:06:33.8]} 52. Rxd6 {[%clk 0:01:49.6]} 52... b4
{[%clk 0:06:32.7]} 53. axb4 {[%clk 0:01:47.4]} 53... axb4 {[%clk 0:06:33]} 54.
Rb6 {[%clk 0:01:44.6]} 54... Rg7 {[%clk 0:06:27.6]} 55. Re3 {[%clk 0:01:42.2]}
55... Rg2+ {[%clk 0:06:28.6]} 56. Kd3 {[%clk 0:01:39.8]} 56... Rg1 {[%clk
0:06:27.8]} 57. Rxb4 {[%clk 0:01:35.2]} 57... Rd1+ {[%clk 0:06:28.2]} 58. Kc2
{[%clk 0:01:33.3]} 58... Rh1 {[%clk 0:06:26.7]} 59. Re2 {[%clk 0:01:29.3]} 59...
Kf7 {[%clk 0:06:26.7]} 60. Rb6 {[%clk 0:01:28.8]} 60... Ra1 {[%clk 0:06:22.9]}
61. e5 {[%clk 0:01:22.9]} 61... Ra5 {[%clk 0:06:20.7]} 62. Rd2 {[%clk
0:01:13.7]} 62... Rc5+ {[%clk 0:06:19.9]} 63. Kb2 {[%clk 0:01:10.6]} 63... Rc8
{[%clk 0:06:16.2]} 64. Rb7+ {[%clk 0:01:04.4]} 64... Kf8 {[%clk 0:06:07]} 65. e6
{[%clk 0:01:00]} 65... Ke8 {[%clk 0:06:07.8]} 66. d6 {[%clk 0:00:59.7]} 66...
Rc6 {[%clk 0:06:05.3]} 67. Rb8+ {[%clk 0:00:57.6]} 1-0

[Event "Rapid del Mercoledì"]
[Site "Chess.com"]
[Date "2020.05.06"]
[Round "2"]
[White "laremaro"]
[Black "Luca090267"]
[Result "1-0"]
[WhiteElo "1606"]
[BlackElo "1410"]
[TimeControl "720+3"]
[EndTime "12:51:16 PDT"]
[Termination "laremaro ha vinto per abbandono"]

1. e4 {[%clk 0:12:02.9]} 1... e5 {[%clk 0:12:01.3]} 2. Nf3 {[%clk 0:12:03.7]}
2... Nc6 {[%clk 0:12:02.1]} 3. Bb5 {[%clk 0:12:04.7]} 3... a6 {[%clk 0:12:01.2]}
4. Ba4 {[%clk 0:12:03.8]} 4... Nf6 {[%clk 0:12:02.3]} 5. d3 {[%clk 0:12:03.5]}
5... d6 {[%clk 0:11:58.2]} 6. O-O {[%clk 0:12:04.1]} 6... Be7 {[%clk 0:11:59.8]}
7. c3 {[%clk 0:12:06]} 7... O-O {[%clk 0:12:01.9]} 8. Nbd2 {[%clk 0:12:07.4]}
8... b5 {[%clk 0:11:58.4]} 9. Bc2 {[%clk 0:12:08.4]} 9... Na5 {[%clk 0:12:00.1]}
10. Re1 {[%clk 0:12:10.1]} 10... c5 {[%clk 0:12:02.1]} 11. Nf1 {[%clk
0:12:11.8]} 11... Bb7 {[%clk 0:11:49.6]} 12. Ng3 {[%clk 0:11:53]} 12... Nd7
{[%clk 0:11:13.1]} 13. Nf5 {[%clk 0:11:35.4]} 13... f6 {[%clk 0:11:12.8]} 14. d4
{[%clk 0:11:17.1]} 14... exd4 {[%clk 0:11:09.1]} 15. cxd4 {[%clk 0:11:16.8]}
15... Nc4 {[%clk 0:10:22.2]} 16. b3 {[%clk 0:11:07.3]} 16... Ncb6 {[%clk
0:10:21.1]} 17. Bf4 {[%clk 0:10:46.3]} 17... Nb8 {[%clk 0:09:49.4]} 18. Qd3
{[%clk 0:10:00.2]} 18... g6 {[%clk 0:09:31.3]} 19. Nh6+ {[%clk 0:09:08.2]} 19...
Kg7 {[%clk 0:09:25.4]} 20. Ng4 {[%clk 0:09:00.6]} 20... Kg8 {[%clk 0:09:16.6]}
21. Rad1 {[%clk 0:08:25.7]} 21... c4 {[%clk 0:09:11.3]} 22. Qe2 {[%clk
0:08:22.5]} 22... Nc6 {[%clk 0:09:06.5]} 23. Ne3 {[%clk 0:07:35.2]} 23... Re8
{[%clk 0:08:32.1]} 24. bxc4 {[%clk 0:07:34.5]} 24... Nxc4 {[%clk 0:08:31.3]} 25.
Nxc4 {[%clk 0:07:36.4]} 25... bxc4 {[%clk 0:08:32.9]} 26. Qxc4+ {[%clk 0:07:39]}
26... Kg7 {[%clk 0:08:30.8]} 27. e5 {[%clk 0:07:35.7]} 27... fxe5 {[%clk
0:08:23.2]} 28. dxe5 {[%clk 0:07:37.5]} 28... Na5 {[%clk 0:07:41]} 29. Qd4
{[%clk 0:07:12.1]} 29... d5 {[%clk 0:07:35.1]} 30. e6+ {[%clk 0:06:44.7]} 30...
Kg8 {[%clk 0:07:33]} 31. h4 {[%clk 0:05:50]} 31... Bxh4 {[%clk 0:06:44.5]} 32.
Ba4 {[%clk 0:04:36.9]} 32... Nc6 {[%clk 0:06:25.9]} 33. Qxd5 {[%clk 0:04:32.8]}
33... Qxd5 {[%clk 0:05:53.2]} 34. Rxd5 {[%clk 0:04:29.1]} 34... Be7 {[%clk
0:05:09.1]} 35. Rd7 {[%clk 0:04:22.4]} 35... Na5 {[%clk 0:04:05.9]} 36. Rc7
{[%clk 0:01:54]} 36... Rf8 {[%clk 0:02:10.2]} 37. Bd2 {[%clk 0:01:51.6]} 37...
Bd6 {[%clk 0:01:51.2]} 38. Rd7 {[%clk 0:01:24.3]} 38... Nc4 {[%clk 0:01:09.2]}
39. Rxb7 {[%clk 0:01:18.8]} 39... Nxd2 {[%clk 0:01:04.9]} 40. Nxd2 {[%clk
0:01:19.1]} 40... Bc5 {[%clk 0:01:02.5]} 41. Ne4 {[%clk 0:01:14.4]} 41... Bd4
{[%clk 0:01:01.6]} 42. Bb3 {[%clk 0:01:07.4]} 42... Kh8 {[%clk 0:01:01]} 43. e7
{[%clk 0:01:08.3]} 43... Rfe8 {[%clk 0:01:01.6]} 44. Nd6 {[%clk 0:01:06.3]}
44... Reb8 {[%clk 0:00:40.4]} 45. Rxb8+ {[%clk 0:01:05.7]} 45... Rxb8 {[%clk
0:00:41.5]} 46. e8=Q+ {[%clk 0:01:07.4]} 1-0

[Event "Rapid del Mercoledì"]
[Site "Chess.com"]
[Date "2020.05.06"]
[Round "2"]
[White "SanSecondoPR"]
[Black "BAKR1980"]
[Result "0-1"]
[WhiteElo "1285"]
[BlackElo "1634"]
[TimeControl "720+3"]
[EndTime "12:51:41 PDT"]
[Termination "BAKR1980 ha vinto per abbandono"]

1. e4 {[%clk 0:12:02.9]} 1... e5 {[%clk 0:11:58.8]} 2. d4 {[%clk 0:12:02.8]}
2... exd4 {[%clk 0:11:58.6]} 3. c3 {[%clk 0:12:01.5]} 3... dxc3 {[%clk
0:11:59.9]} 4. Bc4 {[%clk 0:11:59.3]} 4... cxb2 {[%clk 0:12:01.4]} 5. Bxb2
{[%clk 0:12:00.1]} 5... Bb4+ {[%clk 0:12:02.7]} 6. Nd2 {[%clk 0:11:56.9]} 6...
Bxd2+ {[%clk 0:11:58.4]} 7. Qxd2 {[%clk 0:11:56.9]} 7... Nf6 {[%clk 0:11:59.5]}
8. e5 {[%clk 0:11:53.7]} 8... Qe7 {[%clk 0:12:00.1]} 9. Nf3 {[%clk 0:11:47.9]}
9... O-O {[%clk 0:12:00.2]} 10. O-O {[%clk 0:11:46.7]} 10... Ng4 {[%clk
0:12:00.8]} 11. h3 {[%clk 0:11:37.2]} 11... Nh6 {[%clk 0:12:01.9]} 12. a4 {[%clk
0:11:25.7]} 12... d6 {[%clk 0:12:02.7]} 13. Qc3 {[%clk 0:11:10.3]} 13... dxe5
{[%clk 0:11:30.3]} 14. Nxe5 {[%clk 0:10:54.7]} 14... Qf6 {[%clk 0:11:24]} 15.
Qc2 {[%clk 0:10:09.4]} 15... Bf5 {[%clk 0:11:14.9]} 16. Qb3 {[%clk 0:10:01]}
16... Qg5 {[%clk 0:10:36.8]} 17. Nf3 {[%clk 0:09:49]} 17... Qh5 {[%clk
0:10:21.5]} 18. Qc3 {[%clk 0:09:24.4]} 18... Qg6 {[%clk 0:09:59.4]} 19. Nh4
{[%clk 0:09:16.7]} 19... Qf6 {[%clk 0:10:00.7]} 20. Qxf6 {[%clk 0:09:07.3]}
20... gxf6 {[%clk 0:10:01.8]} 21. Bxf6 {[%clk 0:08:57.2]} 21... Nc6 {[%clk
0:09:51.5]} 22. Bg5 {[%clk 0:08:50.5]} 22... Na5 {[%clk 0:09:04]} 23. Ba2 {[%clk
0:08:41]} 23... Bd3 {[%clk 0:08:26.5]} 24. Rfe1 {[%clk 0:08:25.7]} 24... Kg7
{[%clk 0:08:22.5]} 25. Re3 {[%clk 0:08:15.9]} 25... Bg6 {[%clk 0:07:44.1]} 26.
Rf3 {[%clk 0:07:41.4]} 26... Ng8 {[%clk 0:07:11.3]} 27. Bd2 {[%clk 0:07:36.3]}
27... b6 {[%clk 0:06:31.4]} 28. Rg3 {[%clk 0:07:23.4]} 28... Rad8 {[%clk
0:06:16.2]} 29. Bc3+ {[%clk 0:07:02]} 29... f6 {[%clk 0:06:13.5]} 30. Re1 {[%clk
0:06:26.7]} 30... Nc6 {[%clk 0:06:06.5]} 31. Nf3 {[%clk 0:05:55.3]} 31... Nge7
{[%clk 0:05:55.4]} 32. h4 {[%clk 0:05:47]} 32... Nf5 {[%clk 0:05:48.1]} 33. Rg4
{[%clk 0:05:35]} 33... h5 {[%clk 0:05:43.3]} 34. Rc4 {[%clk 0:05:25.2]} 34...
Rd6 {[%clk 0:04:46.7]} 35. Bb2 {[%clk 0:05:00.6]} 35... Bf7 {[%clk 0:04:33.3]}
36. Rxc6 {[%clk 0:04:35]} 36... Rxc6 {[%clk 0:04:31.7]} 37. Bb1 {[%clk
0:04:28.6]} 37... Bg6 {[%clk 0:04:23.9]} 38. Ba3 {[%clk 0:03:57.4]} 38... Rd8
{[%clk 0:04:10.7]} 39. Be4 {[%clk 0:03:20.1]} 39... Rc4 {[%clk 0:03:54.9]} 40.
Bb1 {[%clk 0:03:03.2]} 40... Nxh4 {[%clk 0:03:51.8]} 41. Re7+ {[%clk 0:02:50.1]}
41... Bf7 {[%clk 0:03:22.3]} 42. Ba2 {[%clk 0:02:31.8]} 42... Nxf3+ {[%clk
0:03:01.8]} 43. gxf3 {[%clk 0:02:24.5]} 43... Rd1+ {[%clk 0:02:57]} 44. Kg2
{[%clk 0:02:20]} 44... Rdd4 {[%clk 0:02:49]} 45. Bb2 {[%clk 0:02:01.3]} 45...
Kf8 {[%clk 0:02:29.7]} 46. Bxd4 {[%clk 0:01:52.3]} 46... Kxe7 {[%clk 0:02:26]}
47. Bxc4 {[%clk 0:01:44.7]} 47... Bxc4 {[%clk 0:02:27.1]} 48. Kg3 {[%clk
0:01:40.2]} 48... c5 {[%clk 0:02:28.4]} 49. Bc3 {[%clk 0:01:38.1]} 49... a5
{[%clk 0:02:26.7]} 50. Kh4 {[%clk 0:01:35.5]} 50... Bf7 {[%clk 0:02:28]} 51. f4
{[%clk 0:01:33.5]} 51... Ke6 {[%clk 0:02:29.4]} 52. Kg3 {[%clk 0:01:32.7]} 52...
Kf5 {[%clk 0:02:28.1]} 53. Kf3 {[%clk 0:01:29.8]} 53... Bd5+ {[%clk 0:02:29.3]}
54. Ke3 {[%clk 0:01:29.7]} 54... Bb3 {[%clk 0:02:30.4]} 55. f3 {[%clk
0:01:21.6]} 55... Bxa4 {[%clk 0:02:31.2]} 56. Kf2 {[%clk 0:01:12.4]} 56... Bc6
{[%clk 0:02:30.2]} 57. Kg3 {[%clk 0:01:09.9]} 57... a4 {[%clk 0:02:31.7]} 58.
Bb2 {[%clk 0:01:08.1]} 58... b5 {[%clk 0:02:33.3]} 59. Kf2 {[%clk 0:00:52.2]}
59... b4 {[%clk 0:02:34.1]} 60. Ke3 {[%clk 0:00:52.8]} 60... a3 {[%clk
0:02:35.5]} 61. Ba1 {[%clk 0:00:50]} 61... b3 {[%clk 0:02:36.5]} 62. Kd2 {[%clk
0:00:51.6]} 62... b2 {[%clk 0:02:38]} 0-1

[Event "Rapid del Mercoledì"]
[Site "Chess.com"]
[Date "2020.05.06"]
[Round "3"]
[White "Luca090267"]
[Black "sergiodone"]
[Result "0-1"]
[WhiteElo "1390"]
[BlackElo "1542"]
[TimeControl "720+3"]
[EndTime "13:02:18 PDT"]
[Termination "sergiodone ha vinto per abbandono"]

1. e4 {[%clk 0:12:00.4]} 1... c5 {[%clk 0:12:01.1]} 2. Nc3 {[%clk 0:11:54.3]}
2... d6 {[%clk 0:12:01.5]} 3. g3 {[%clk 0:11:52.9]} 3... e6 {[%clk 0:11:59.3]}
4. Bg2 {[%clk 0:11:51.9]} 4... Be7 {[%clk 0:12:00.9]} 5. d3 {[%clk 0:11:48]}
5... Nc6 {[%clk 0:12:01.8]} 6. f4 {[%clk 0:11:36.9]} 6... h5 {[%clk 0:12:01.9]}
7. Nf3 {[%clk 0:11:33.3]} 7... h4 {[%clk 0:12:02.4]} 8. g4 {[%clk 0:11:13.1]}
8... h3 {[%clk 0:12:03.9]} 9. Bf1 {[%clk 0:11:12.8]} 9... Nf6 {[%clk 0:12:04.6]}
10. g5 {[%clk 0:11:02.3]} 10... Ng8 {[%clk 0:11:39.6]} 11. b3 {[%clk 0:10:43.7]}
11... Nd4 {[%clk 0:11:32]} 12. Nxd4 {[%clk 0:10:41.4]} 12... cxd4 {[%clk
0:11:33.5]} 13. Ne2 {[%clk 0:10:41.5]} 13... Qb6 {[%clk 0:11:34.2]} 14. Bb2
{[%clk 0:10:38.3]} 14... e5 {[%clk 0:11:35.7]} 15. Rg1 {[%clk 0:10:25.8]} 15...
g6 {[%clk 0:11:29.1]} 16. Qd2 {[%clk 0:10:21.8]} 16... Bd7 {[%clk 0:11:26.5]}
17. O-O-O {[%clk 0:10:18.6]} 17... a5 {[%clk 0:11:21.9]} 18. a4 {[%clk 0:10:15]}
18... Rc8 {[%clk 0:11:15.9]} 19. Kb1 {[%clk 0:10:12.3]} 19... Be6 {[%clk
0:11:14.5]} 20. Nc1 {[%clk 0:09:27.8]} 20... Rh4 {[%clk 0:11:03.2]} 21. Ne2
{[%clk 0:08:06.9]} 21... Bd7 {[%clk 0:10:27.2]} 22. Ka2 {[%clk 0:07:49.5]} 22...
Bd8 {[%clk 0:10:21.6]} 23. Rg3 {[%clk 0:07:25.5]} 23... Qc5 {[%clk 0:10:20.3]}
24. Rc1 {[%clk 0:07:16]} 24... b5 {[%clk 0:10:11.8]} 25. axb5 {[%clk 0:07:02.8]}
25... Qxb5 {[%clk 0:10:01.4]} 26. Rxh3 {[%clk 0:06:52.1]} 26... Bxh3 {[%clk
0:09:54.5]} 0-1

[Event "Rapid del Mercoledì"]
[Site "Chess.com"]
[Date "2020.05.06"]
[Round "3"]
[White "GB86_CHESS"]
[Black "laremaro"]
[Result "1-0"]
[WhiteElo "1843"]
[BlackElo "1596"]
[TimeControl "720+3"]
[EndTime "13:08:12 PDT"]
[Termination "GB86_CHESS ha vinto per abbandono"]

1. e4 {[%clk 0:11:05.7]} 1... d5 {[%clk 0:11:58.6]} 2. exd5 {[%clk 0:11:05.7]}
2... Qxd5 {[%clk 0:12:00.6]} 3. Nc3 {[%clk 0:11:06.2]} 3... Qd6 {[%clk
0:12:02.7]} 4. Bc4 {[%clk 0:11:04.9]} 4... Nf6 {[%clk 0:11:59.7]} 5. Nf3 {[%clk
0:10:54.4]} 5... Bg4 {[%clk 0:12:00]} 6. h3 {[%clk 0:10:54.6]} 6... Bh5 {[%clk
0:12:01.2]} 7. d4 {[%clk 0:10:48.1]} 7... c6 {[%clk 0:11:59]} 8. g4 {[%clk
0:10:45]} 8... Bg6 {[%clk 0:11:58.9]} 9. Ne5 {[%clk 0:10:46.4]} 9... e6 {[%clk
0:11:59.7]} 10. Bf4 {[%clk 0:10:45.4]} 10... Qb4 {[%clk 0:12:00.5]} 11. Bb3
{[%clk 0:10:37.8]} 11... Nd5 {[%clk 0:11:50.4]} 12. a3 {[%clk 0:10:22.2]} 12...
Nxc3 {[%clk 0:11:37.9]} 13. axb4 {[%clk 0:10:19.5]} 13... Nxd1 {[%clk
0:11:39.6]} 14. Rxd1 {[%clk 0:10:11.5]} 14... Na6 {[%clk 0:11:09.3]} 15. c3
{[%clk 0:10:09.6]} 15... Rd8 {[%clk 0:11:08]} 16. h4 {[%clk 0:10:08.1]} 16...
Bd6 {[%clk 0:10:48.6]} 17. f3 {[%clk 0:09:41.4]} 17... Bxe5 {[%clk 0:10:01]} 18.
Bxe5 {[%clk 0:09:37.2]} 18... f6 {[%clk 0:09:58.6]} 19. Bf4 {[%clk 0:09:22.4]}
19... Bf7 {[%clk 0:09:56.7]} 20. Ke2 {[%clk 0:09:18.6]} 20... O-O {[%clk
0:09:56.2]} 21. h5 {[%clk 0:09:07.1]} 21... Rfe8 {[%clk 0:09:57.5]} 22. g5
{[%clk 0:09:02.5]} 22... e5 {[%clk 0:08:43.5]} 23. Bxf7+ {[%clk 0:09:01.2]}
23... Kxf7 {[%clk 0:08:40.7]} 24. dxe5 {[%clk 0:08:55.9]} 24... Rxd1 {[%clk
0:08:40.5]} 25. Rxd1 {[%clk 0:08:54.3]} 25... fxe5 {[%clk 0:08:41.9]} 26. Be3
{[%clk 0:08:48]} 26... b6 {[%clk 0:08:38.4]} 27. Rd6 {[%clk 0:08:39.5]} 27...
Re6 {[%clk 0:08:34.1]} 28. Rd7+ {[%clk 0:08:28.7]} 28... Re7 {[%clk 0:08:35.9]}
29. g6+ {[%clk 0:08:24.9]} 29... hxg6 {[%clk 0:08:33.9]} 30. hxg6+ {[%clk
0:08:25.3]} 30... Ke6 {[%clk 0:08:35.3]} 31. Rd8 {[%clk 0:08:13.2]} 31... Kf6
{[%clk 0:08:31.9]} 32. Rd6+ {[%clk 0:08:05.6]} 32... Re6 {[%clk 0:08:31.1]} 33.
Rd7 {[%clk 0:07:43.7]} 33... Kxg6 {[%clk 0:07:13.2]} 34. Rxa7 {[%clk 0:07:39.6]}
34... Nb8 {[%clk 0:07:11.5]} 35. Rb7 {[%clk 0:07:31.2]} 35... Re8 {[%clk
0:07:12.1]} 36. Bxb6 {[%clk 0:07:29.8]} 36... Rh8 {[%clk 0:07:09.2]} 37. b3
{[%clk 0:07:19.2]} 37... Kf6 {[%clk 0:07:02.4]} 38. Ke3 {[%clk 0:07:14.3]} 38...
g6 {[%clk 0:07:01.4]} 39. Ba7 {[%clk 0:07:07.5]} 39... Na6 {[%clk 0:06:58]} 40.
Rb6 {[%clk 0:07:08.7]} 40... Nc7 {[%clk 0:06:56.1]} 41. Rxc6+ {[%clk 0:07:10.1]}
41... Ne6 {[%clk 0:06:56.7]} 42. b5 {[%clk 0:06:57]} 42... Kf5 {[%clk
0:06:51.4]} 43. b6 {[%clk 0:06:51.6]} 43... Nf4 {[%clk 0:06:35.1]} 44. b7 {[%clk
0:06:42]} 44... Nd5+ {[%clk 0:06:36.3]} 45. Kd3 {[%clk 0:06:38.5]} 1-0